fUSD/lending_fUSD_20240502
["ID","MTS","AMOUNT","RATE_DAILY","PERIOD"]
[325274280,1714677058948,-1924.25,0.00030136,2]
[325274281,1714677058957,-504.9880671,0.00030136,2]
[325274282,1714677058967,-500.0,0.00030136,2]
[325274283,1714677058976,-500.0,0.00030136,2]
[325274284,1714677058986,-2049.52,0.00030136,2]
[325274285,1714677058995,-500.0,0.00030136,2]
[325274286,1714677059004,-3258.35,0.00030136,2]
[325274287,1714677059013,-501.42873702,0.00030136,2]
[325274288,1714677059023,-500.0,0.00030136,2]
[325274289,1714677059032,-2453.54,0.00030136,2]
[325274290,1714677059041,-500.0,0.00030136,2]
[325274291,1714677059051,-500.0,0.00030136,2]
[325274292,1714677059060,-3096.25,0.00030136,2]
[325274293,1714677059070,-500.0,0.00030136,2]
[325274294,1714677059083,-500.0,0.00030136,2]
[325274295,1714677059092,-500.0,0.00030136,2]
[325274296,1714677059101,-500.0,0.00030136,2]
[325274297,1714677059110,-500.0,0.00030136,2]
[325274298,1714677059120,-3142.68,0.00030136,2]
[325274299,1714677059129,-500.0,0.00030136,2]
[325274300,1714677059139,-500.0,0.00030136,2]
[325274301,1714677059150,-1031.65,0.00030136,2]
[325274302,1714677059159,-500.0,0.00030136,2]
[325274303,1714677059169,-500.0,0.00030136,2]
[325274304,1714677059178,-500.0,0.00030136,2]
[325274305,1714677059187,-500.0,0.00030136,2]
[325274306,1714677059196,-500.0,0.00030136,2]
[325274307,1714677059206,-500.0,0.00030136,2]
[325274308,1714677059215,-3734.68,0.00030136,2]
[325274309,1714677059223,-502.22695919,0.00030136,2]
[325274310,1714677059233,-500.0,0.00030136,2]
[325274311,1714677059243,-2560.81,0.00030136,2]
[325274312,1714677059252,-500.0,0.00030136,2]
[325274313,1714677059261,-500.0,0.00030136,2]
[325274314,1714677059271,-590.99273632,0.00030136,2]
[325274315,1714677059280,-500.0,0.00030136,2]
[325274316,1714677059289,-3621.86,0.00030136,2]
[325274317,1714677059299,-500.0,0.00030136,2]
[325274318,1714677059309,-500.0,0.00030136,2]
[325274319,1714677059318,-500.0,0.00030136,2]
[325274320,1714677059327,-500.0,0.00030136,2]
[325274321,1714677059336,-7142.02,0.00030136,2]
[325274322,1714677059346,-500.0,0.00030136,2]
[325274323,1714677059355,-500.0,0.00030136,2]
[325274324,1714677059364,-500.0,0.00030136,120]
[325274325,1714677059374,-500.0,0.00030136,2]
[325274326,1714677059384,-2501.08,0.00030136,2]
[325274327,1714677059393,-500.0,0.00030136,2]
[325274328,1714677059403,-500.0,0.00030136,2]
[325274329,1714677059412,-2266.24,0.00030136,2]
[325274330,1714677059421,-500.0,0.00030136,2]
[325274331,1714677059431,-3072.53,0.00030136,2]
[325274332,1714677059441,-509.12312601,0.00030136,2]
[325274333,1714677059450,-1385.36,0.00030136,2]
[325274334,1714677059459,-4507.43,0.00030136,2]
[325274335,1714677059470,-1054.61,0.00030136,2]
[325274336,1714677059480,-11786.48,0.00030136,2]
[325274337,1714677059489,-4210.26,0.00030136,2]
[325274338,1714677059499,-341.66749463,0.00030136,2]
[325274339,1714677059508,-2054.39,0.00030136,2]
[325274340,1714677059517,-500.0,0.00030136,2]
[325274341,1714677059527,-500.0,0.00030136,2]
[325274342,1714677059537,-3797.11,0.00030136,2]
[325274343,1714677059546,-500.0,0.00030136,2]
[325274344,1714677059556,-500.0,0.00030136,2]
[325274345,1714677059565,-6527.93,0.00030136,2]
[325274346,1714677059575,-500.0,0.00030136,2]
[325274347,1714677059584,-500.0,0.00030136,2]
[325274348,1714677059593,-500.0,0.00030136,2]
[325274349,1714677059602,-536.11,0.00030136,2]
[325274350,1714677059612,-506.6600631,0.00030136,2]
[325274351,1714677059621,-2743.32,0.00030136,2]
[325274352,1714677059631,-22001.87,0.00030136,2]
[325274353,1714677059640,-1403.76,0.00030136,2]
[325274354,1714677059650,-730.5,0.00030136,2]
[325274355,1714677059660,-500.0,0.00030136,2]
[325274356,1714677059670,-501.28415416,0.00030136,2]
[325274357,1714677059679,-565.6843659,0.00030136,2]
[325274358,1714677059688,-500.0,0.00030136,2]
[325274359,1714677059698,-9229.62,0.00030136,2]
[325274360,1714677059707,-500.0,0.00030136,2]
[325274361,1714677059717,-500.94337613,0.00030136,2]
[325274362,1714677059727,-5734.66,0.00030136,2]
[325274363,1714677059736,-500.0,0.00030136,2]
[325274364,1714677059745,-539.28604779,0.00030136,2]
[325274365,1714677059754,-715.41,0.00030136,2]
[325274366,1714677059764,-10245.11,0.00030136,2]
[325274367,1714677059774,-500.0,0.00030136,2]
[325274368,1714677059783,-500.0,0.00030136,2]
[325274369,1714677059792,-2672.02,0.00030136,2]
[325274370,1714677059802,-500.0,0.00030136,2]
[325274371,1714677059812,-1725.49,0.00030136,2]
[325274372,1714677059821,-500.0,0.00030136,2]
[325274373,1714677059831,-500.0,0.00030136,2]
[325274374,1714677059840,-1477.76,0.00030136,2]
[325274375,1714677059850,-500.0,0.00030136,2]
[325274376,1714677059859,-500.56705124,0.00030136,2]
[325274377,1714677059869,-528.73,0.00030136,2]
[325274378,1714677059878,-500.0,0.00030136,2]
[325274379,1714677059888,-500.0,0.00030136,2]
[325274380,1714677059897,-673.81,0.00030136,2]
[325274381,1714677059906,-3136.73,0.00030136,2]
[325274382,1714677059917,-813.73,0.00030136,2]
[325274383,1714677059926,-3354.46,0.00030136,2]
[325274384,1714677059935,-500.0,0.00030136,2]
[325274385,1714677059945,-516.76606195,0.00030136,2]
[325274386,1714677059954,-500.0,0.00030136,2]
[325274387,1714677059963,-500.0,0.00030136,2]
[325274388,1714677059972,-1333.79,0.00030136,2]
[325274389,1714677059982,-500.0,0.00030136,2]
[325274390,1714677059991,-507.69872864,0.00030136,2]
[325274391,1714677060001,-501.54139968,0.00030136,2]
[325274392,1714677060011,-1961.01,0.00030136,2]
[325274393,1714677060021,-1038.49,0.00030136,2]
[325274394,1714677060030,-500.0,0.00030136,2]
[325274395,1714677060039,-151.0,0.00030136,7]
[325274396,1714677060048,-500.0,0.00030136,2]
[325274397,1714677060058,-500.0,0.00030136,2]
[325274398,1714677060068,-500.0,0.00030136,2]
[325274399,1714677060081,-500.0,0.00030136,2]
[325274400,1714677060091,-1017.35,0.00030136,2]
[325274401,1714677060100,-717.38,0.00030136,2]
[325274402,1714677060110,-2002.38,0.00030136,2]
[325274403,1714677060121,-500.0,0.00030136,2]
[325274404,1714677060131,-2010.75,0.00030136,2]
[325274405,1714677060140,-500.0,0.00030136,2]
[325274406,1714677060150,-9152.16,0.00030136,2]
[325274407,1714677060161,-500.0,0.00030136,2]
[325274408,1714677060170,-500.0,0.00030136,2]
[325274409,1714677060180,-500.0,0.00030136,2]
[325274410,1714677060189,-500.0,0.00030136,2]
[325274411,1714677060199,-500.0,0.00030136,2]
[325274412,1714677060208,-946.11,0.00030136,2]
[325274413,1714677060217,-500.0,0.00030136,2]
[325274414,1714677060227,-1608.54,0.00030136,2]
[325274415,1714677060236,-1038.19,0.00030136,2]
[325274416,1714677060246,-1170.38,0.00030136,2]
[325274417,1714677060256,-4307.56,0.00030136,2]
[325274418,1714677060265,-500.0,0.00030136,2]
[325274419,1714677060276,-5514.63,0.00030136,2]
[325274420,1714677060286,-500.0,0.00030136,2]
[325274421,1714677060296,-2261.1,0.00030136,2]
[325274422,1714677060306,-1769.25,0.00030136,2]
[325274423,1714677060317,-151.0,0.00030136,7]
[325274424,1714677060327,-500.95144381,0.00030136,2]
[325274425,1714677060336,-1083.65,0.00030136,2]
[325274426,1714677060346,-500.0,0.00030136,2]
[325274427,1714677060356,-500.0,0.00030136,2]
[325274428,1714677060366,-500.0,0.00030136,2]
[325274429,1714677060376,-893.7,0.00030136,2]
[325274430,1714677060385,-1513.5,0.00030136,2]
[325274431,1714677060395,-500.0,0.00030136,2]
[325274432,1714677060405,-500.0,0.00030136,2]
[325274433,1714677060416,-500.0,0.00030136,2]
[325274434,1714677060425,-776.45,0.00030136,2]
[325274435,1714677060435,-504.24486995,0.00030136,2]
[325274436,1714677060444,-1185.96,0.00030136,2]
[325274437,1714677060453,-2069.38,0.00030136,2]
[325274438,1714677060465,-500.0,0.00030136,2]
[325274439,1714677060475,-500.0,0.00030136,2]
[325274440,1714677060484,-5329.52,0.00030136,2]
[325274441,1714677060494,-500.0,0.00030136,2]
[325274442,1714677060503,-500.19288233,0.00030136,2]
[325274443,1714677060513,-2514.12,0.00030136,2]
[325274444,1714677060522,-1607.59,0.00030136,2]
[325274445,1714677060531,-503.16277471,0.00030136,2]
[325274446,1714677060540,-500.0,0.00030136,2]
[325274447,1714677060550,-252.66111895,0.00030136,2]
[325274448,1714677060559,-7032.22,0.00030136,2]
[325274449,1714677060569,-2623.45,0.00030136,2]
[325274450,1714677060578,-500.0,0.00030136,2]
[325274451,1714677060587,-558.64,0.00030136,2]
[325274452,1714677060596,-650.21,0.00030136,2]
[325274453,1714677060605,-500.0,0.00030136,2]
[325274454,1714677060616,-500.0,0.00030136,2]
[325274455,1714677060625,-5432.2,0.00030136,2]
[325274456,1714677060634,-612.7,0.00030136,2]
[325274457,1714677060644,-500.0,0.00030136,2]
[325274458,1714677060653,-500.0,0.00030136,2]
[325274459,1714677060663,-500.0,0.00030136,2]
[325274460,1714677060673,-435.04090552,0.00030136,2]
[325274461,1714677060682,-500.0,0.00030136,2]
[325274462,1714677060691,-500.0,0.00030136,2]
[325274463,1714677060700,-500.0,0.00030136,2]
[325274464,1714677060710,-500.0,0.00030136,2]
[325274465,1714677060719,-500.0,0.00030136,2]
[325274466,1714677060729,-500.0,0.00030136,2]
[325274467,1714677060738,-500.0,0.00030136,4]
[325274468,1714677060747,-2484.84,0.00030136,2]
[325274469,1714677060756,-500.0,0.00030136,4]
[325274470,1714677060766,-583.55,0.00030136,2]
[325274471,1714677060775,-500.0,0.00030136,2]
[325274472,1714677060784,-500.0,0.00030136,4]
[325274473,1714677060794,-500.0,0.00030136,4]
[325274474,1714677060804,-500.0,0.00030136,2]
[325274475,1714677060813,-500.0,0.00030136,4]
[325274476,1714677060823,-500.0,0.00030136,4]
[325274477,1714677060832,-3094.66,0.00030136,2]
[325274478,1714677060841,-1191.9,0.00030136,2]
[325274479,1714677060850,-500.0,0.00030136,4]
[325274480,1714677060860,-1519.73,0.00030136,2]
[325274481,1714677060869,-500.0,0.00030136,4]
[325274482,1714677060879,-500.0,0.00030136,4]
[325274483,1714677060888,-500.0,0.00030136,4]
[325274484,1714677060898,-500.0,0.00030136,4]
[325274485,1714677060907,-2163.98,0.00030136,2]
[325274486,1714677060918,-500.0,0.00030136,4]
[325274487,1714677060927,-500.0,0.00030136,4]
[325274488,1714677060936,-500.0,0.00030136,2]
[325274489,1714677060945,-500.0,0.00030136,4]
[325274490,1714677060954,-1618.67,0.00030136,2]
[325274491,1714677060964,-500.0,0.00030136,4]
[325274492,1714677060974,-767.37,0.00030136,2]
[325274493,1714677060983,-855.14,0.00030136,2]
[325274494,1714677060993,-500.0,0.00030136,2]
[325274495,1714677061002,-500.0,0.00030136,2]
[325274496,1714677061010,-500.0,0.00030136,2]
[325274497,1714677061020,-500.0,0.00030136,2]
[325274498,1714677061030,-500.0,0.00030136,2]
[325274499,1714677061041,-570.39,0.00030136,2]
[325274500,1714677061052,-639.73,0.00030136,2]
[325274501,1714677061062,-802.35,0.00030136,2]
[325274502,1714677061074,-1399.49,0.00030136,2]
[325274503,1714677061086,-500.0,0.00030136,2]
[325274504,1714677061096,-1476.2,0.00030136,2]
[325274505,1714677061105,-7608.05,0.00030136,2]
[325274506,1714677061115,-6571.48,0.00030136,2]
[325274507,1714677061124,-859.96,0.00030136,2]
[325274508,1714677061133,-500.0,0.00030136,2]
[325274509,1714677061142,-500.49783172,0.00030136,2]
[325274510,1714677061153,-646.57,0.00030136,2]
[325274511,1714677061163,-1302.1,0.00030136,2]
[325274512,1714677061172,-500.0,0.00030136,2]
[325274513,1714677061181,-500.0,0.00030136,2]
[325274514,1714677061191,-1597.92,0.00030136,2]
[325274515,1714677061199,-629.84,0.00030136,2]
[325274516,1714677061208,-500.0,0.00030136,2]
[325274517,1714677061218,-500.0,0.00030136,2]
[325274518,1714677061227,-500.0,0.00030136,2]
[325274519,1714677061237,-4047.74,0.00030136,2]
[325274520,1714677061246,-1176.07,0.00030136,2]
[325274521,1714677061255,-1133.69,0.00030136,2]
[325274522,1714677061265,-502.35800144,0.00030136,2]
[325274523,1714677061274,-500.0,0.00030136,2]
[325274524,1714677061283,-4946.87,0.00030136,2]
[325274525,1714677061293,-500.0,0.00030136,2]
[325274526,1714677061303,-500.0,0.00030136,2]
[325274527,1714677061312,-500.0,0.00030136,2]
[325274528,1714677061322,-718.09,0.00030136,2]
[325274529,1714677061331,-500.0,0.00030136,2]
[325274530,1714677061340,-500.0,0.00030136,2]
[325274531,1714677061349,-500.0,0.00030136,2]
[325274532,1714677061359,-500.0,0.00030136,2]
[325274533,1714677061368,-500.0,0.00030136,2]
[325274534,1714677061376,-3688.38,0.00030136,2]
[325274535,1714677061386,-884.81,0.00030136,2]
[325274536,1714677061394,-813.32,0.00030136,2]
[325274537,1714677061404,-276.03576102,0.00030158,7]
[325274538,1714677061413,-706.20038689,0.00030238,7]
[325274539,1714677061422,-272.20242189,0.00030249,7]
[325274540,1714677061431,-180.0,0.00030258,2]
[325274541,1714677061441,-276.03576102,0.0003032,7]
[325274542,1714677061450,-175.8,0.000304,2]
[325274543,1714677061460,-212.36947955,0.00030402,7]
[325274544,1714677061469,-500.0,0.00030409,4]
[325274545,1714677061478,-888.0,0.00030409,3]
[325274546,1714677061488,-150.0,0.00030409,2]
[325274547,1714677061497,-500.0,0.00030409,4]
[325274548,1714677061507,-500.0,0.00030409,4]
[325274549,1714677061516,-500.0,0.00030409,4]
[325274550,1714677061526,-500.0,0.00030409,4]
[325274551,1714677061535,-314.64592189,0.0003041,2]
[325274552,1714677061544,-500.0,0.0003041,2]
[325274553,1714677061554,-500.0,0.0003041,2]
[325274554,1714677061563,-500.0,0.0003041,2]
[325274555,1714677061572,-500.0,0.0003041,2]
[325274556,1714677061582,-500.0,0.0003041,2]
[325274557,1714677061592,-500.0,0.0003041,2]
[325274558,1714677061601,-500.0,0.0003041,2]
[325274559,1714677061612,-500.0,0.0003041,2]
[325274560,1714677061621,-500.0,0.0003041,2]
[325274561,1714677061632,-809.73,0.0003041,2]
[325274562,1714677061641,-500.0,0.0003041,2]
[325274563,1714677061651,-500.0,0.0003041,2]
[325274564,1714677061661,-500.0,0.0003041,2]
[325274565,1714677061669,-648.32,0.0003041,2]
[325274566,1714677061678,-500.0,0.0003041,2]
[325274567,1714677061688,-500.0,0.0003041,2]
[325274568,1714677061697,-500.0,0.0003041,2]
[325274569,1714677061708,-500.0,0.0003041,2]
[325274570,1714677061718,-1082.24,0.0003041,2]
[325274571,1714677061727,-500.0,0.0003041,2]
[325274572,1714677061737,-500.0,0.0003041,2]
[325274573,1714677061747,-500.0,0.0003041,2]
[325274574,1714677061756,-500.0,0.0003041,2]
[325274575,1714677061765,-774.67,0.0003041,2]
[325274576,1714677061775,-500.0,0.0003041,2]
[325274577,1714677061785,-500.0,0.0003041,2]
[325274578,1714677061794,-615.1792984,0.0003041,2]
[325274579,1714677061804,-507.56411748,0.0003041,2]
[325274580,1714677061813,-500.0,0.0003041,2]
[325274581,1714677061822,-500.0,0.0003041,2]
[325274582,1714677061831,-500.0,0.0003041,2]
[325274583,1714677061841,-500.0,0.0003041,2]
[325274584,1714677061850,-500.0,0.0003041,2]
[325274585,1714677061860,-500.0,0.0003041,2]
[325274586,1714677061869,-500.0,0.0003041,2]
[325274587,1714677061878,-500.0,0.0003041,2]
[325274588,1714677061887,-500.0,0.0003041,2]
[325274589,1714677061897,-500.0,0.0003041,2]
[325274590,1714677061906,-572.39,0.0003041,2]
[325274591,1714677061917,-500.0,0.0003041,2]
[325274592,1714677061927,-961.49,0.0003041,2]
[325274593,1714677061936,-500.0,0.0003041,2]
[325274594,1714677061945,-500.0,0.0003041,2]
[325274595,1714677061955,-500.0,0.0003041,2]
[325274596,1714677061964,-500.0,0.0003041,2]
[325274597,1714677061974,-500.0,0.0003041,2]
[325274598,1714677061983,-661.95,0.0003041,2]
[325274599,1714677061993,-506.30221772,0.0003041,2]
[325274600,1714677062003,-490.98117741,0.0003041,2]
[325274601,1714677062012,-500.0,0.0003041,2]
[325274602,1714677062022,-501.46019479,0.0003041,2]
[325274603,1714677062031,-500.0,0.0003041,2]
[325274604,1714677062040,-500.0,0.0003041,2]
[325274605,1714677062049,-1990.4,0.0003041,2]
[325274606,1714677062059,-500.0,0.0003041,2]
[325274607,1714677062068,-597.1,0.0003041,2]
[325274608,1714677062080,-500.0,0.0003041,2]
[325274609,1714677062089,-541.93,0.0003041,2]
[325274610,1714677062098,-500.0,0.0003041,2]
[325274611,1714677062107,-152.6492093,0.0003041,2]
[325274612,1714677062117,-500.0,0.0003041,2]
[325274613,1714677062127,-500.0,0.0003041,2]
[325274614,1714677062136,-500.0,0.0003041,2]
[325274615,1714677062146,-500.0,0.0003041,2]
[325274616,1714677062156,-500.0,0.0003041,2]
[325274617,1714677062169,-500.0,0.0003041,2]
[325274618,1714677062178,-500.0,0.0003041,2]
[325274619,1714677062187,-451.26654857,0.0003041,2]
[325274620,1714677062195,-500.0,0.0003041,2]
[325274621,1714677062205,-500.0,0.0003041,2]
[325274622,1714677062215,-500.0,0.0003041,2]
[325274623,1714677062224,-500.0,0.0003041,2]
[325274624,1714677062234,-500.0,0.0003041,2]
[325274625,1714677062244,-500.0,0.0003041,2]
[325274626,1714677062253,-500.0,0.0003041,2]
[325274627,1714677062263,-500.0,0.0003041,2]
[325274628,1714677062272,-500.0,0.0003041,2]
[325274629,1714677062282,-555.74,0.0003041,2]
[325274630,1714677062291,-293.38203425,0.0003041,2]
[325274631,1714677062415,-500.0,0.0003041,2]
[325274632,1714677062432,-503.18036406,0.0003041,2]
[325274633,1714677062443,-500.0,0.0003041,2]
[325274634,1714677062452,-500.0,0.0003041,2]
[325274635,1714677062461,-500.0,0.0003041,2]
[325274636,1714677062472,-500.0,0.0003041,2]
[325274637,1714677062482,-500.0,0.0003041,2]
[325274638,1714677062492,-500.0,0.0003041,2]
[325274639,1714677062502,-500.0,0.0003041,2]
[325274640,1714677062512,-500.0,0.0003041,2]
[325274641,1714677062522,-500.0,0.0003041,2]
[325274642,1714677062531,-512.62373833,0.0003041,2]
[325274643,1714677062541,-500.0,0.0003041,2]
[325274644,1714677062551,-726.77,0.0003041,2]
[325274645,1714677062560,-500.0,0.0003041,2]
[325274646,1714677062570,-500.0,0.0003041,2]
[325274647,1714677062579,-585.05811111,0.0003041,2]
[325274648,1714677062589,-500.0,0.0003041,2]
[325274649,1714677062598,-500.0,0.0003041,2]
[325274650,1714677062608,-500.0,0.0003041,2]
[325274651,1714677062618,-546.86246308,0.0003041,2]
[325274652,1714677062627,-500.0,0.0003041,2]
[325274653,1714677062637,-500.0,0.0003041,2]
[325274654,1714677062647,-500.0,0.0003041,2]
[325274655,1714677062657,-500.0,0.0003041,2]
[325274656,1714677062668,-500.0,0.0003041,2]
[325274657,1714677062678,-500.0,0.0003041,2]
[325274658,1714677062688,-500.0,0.0003041,2]
[325274659,1714677062698,-500.0,0.0003041,2]
[325274660,1714677062708,-500.0,0.0003041,2]
[325274661,1714677062718,-500.0,0.0003041,2]
[325274662,1714677062727,-500.0,0.0003041,2]
[325274663,1714677062737,-500.0,0.0003041,2]
[325274664,1714677062747,-500.0,0.0003041,2]
[325274665,1714677062756,-514.28,0.0003041,2]
[325274666,1714677062766,-508.36358357,0.0003041,2]
[325274667,1714677062776,-500.0,0.0003041,2]
[325274668,1714677062785,-500.0,0.0003041,2]
[325274669,1714677062795,-1113.36,0.0003041,2]
[325274670,1714677062804,-500.0,0.0003041,2]
[325274671,1714677062814,-500.0,0.0003041,2]
[325274672,1714677062824,-849.04,0.0003041,2]
[325274673,1714677062834,-500.0,0.0003041,2]
[325274674,1714677062844,-615.17,0.0003041,2]
[325274675,1714677062854,-500.0,0.0003041,2]
[325274676,1714677062863,-500.0,0.0003041,2]
[325274677,1714677062873,-500.0,0.0003041,2]
[325274678,1714677062883,-500.0,0.0003041,2]
[325274679,1714677062892,-500.0,0.0003041,2]
[325274680,1714677062902,-500.0,0.0003041,2]
[325274681,1714677062917,-500.0,0.0003041,2]
[325274682,1714677062927,-505.76217911,0.0003041,2]
[325274683,1714677062936,-500.0,0.0003041,2]
[325274684,1714677062946,-151.0,0.0003041,7]
[325274685,1714677062955,-500.0,0.0003041,2]
[325274686,1714677062964,-500.0,0.0003041,2]
[325274687,1714677062974,-500.0,0.0003041,2]
[325274688,1714677062983,-500.0,0.0003041,2]
[325274689,1714677062993,-500.0,0.0003041,2]
[325274690,1714677063002,-500.0,0.0003041,2]
[325274691,1714677063011,-500.0,0.0003041,2]
[325274692,1714677063021,-500.0,0.0003041,2]
[325274693,1714677063031,-558.94,0.0003041,2]
[325274694,1714677063040,-500.0,0.0003041,2]
[325274695,1714677063050,-151.0,0.0003041,7]
[325274696,1714677063059,-500.0,0.0003041,2]
[325274697,1714677063068,-500.0,0.0003041,2]
[325274698,1714677063081,-500.0,0.0003041,2]
[325274699,1714677063091,-500.0,0.0003041,2]
[325274700,1714677063101,-500.0,0.0003041,2]
[325274701,1714677063110,-500.0,0.0003041,2]
[325274702,1714677063121,-500.0,0.0003041,2]
[325274703,1714677063131,-642.44474995,0.0003041,2]
[325274704,1714677063140,-500.0,0.0003041,2]
[325274705,1714677063150,-669.32,0.0003041,2]
[325274706,1714677063162,-500.0,0.0003041,2]
[325274707,1714677063172,-500.0,0.0003041,2]
[325274708,1714677063182,-555.6,0.0003041,2]
[325274709,1714677063191,-500.0,0.0003041,2]
[325274710,1714677063201,-447.1323974,0.0003041,2]
[325274711,1714677063210,-511.24090237,0.0003041,2]
[325274712,1714677063220,-510.63883648,0.0003041,2]
[325274713,1714677063230,-505.24,0.0003041,2]
[325274714,1714677063239,-500.0,0.0003041,2]
[325274715,1714677063249,-385.35703542,0.0003041,2]
[325274716,1714677063259,-500.0,0.0003041,2]
[325274717,1714677063268,-500.0,0.0003041,2]
[325274718,1714677063278,-500.0,0.0003041,2]
[325274719,1714677063288,-500.0,0.0003041,2]
[325274720,1714677063298,-500.0,0.0003041,2]
[325274721,1714677063307,-500.0,0.0003041,2]
[325274722,1714677063317,-500.0,0.0003041,2]
[325274723,1714677063327,-500.0,0.0003041,2]
[325274724,1714677063336,-512.80167322,0.0003041,2]
[325274725,1714677063346,-500.0,0.0003041,2]
[325274726,1714677063356,-719.98,0.0003041,2]
[325274727,1714677063366,-500.0,0.0003041,2]
[325274728,1714677063375,-462.93605052,0.0003041,2]
[325274729,1714677063385,-500.0,0.0003041,2]
[325274730,1714677063395,-500.0,0.0003041,2]
[325274731,1714677063404,-500.0,0.0003041,2]
[325274732,1714677063416,-500.0,0.0003041,2]
[325274733,1714677063425,-500.0,0.0003041,2]
[325274734,1714677063435,-735.16,0.0003041,2]
[325274735,1714677063444,-500.0,0.0003041,2]
[325274736,1714677063454,-779.96,0.0003041,2]
[325274737,1714677063463,-500.0,0.0003041,2]
[325274738,1714677063474,-1151.43,0.0003041,2]
[325274739,1714677063484,-712.87,0.0003041,2]
[325274740,1714677063494,-620.34973905,0.0003041,2]
[325274741,1714677063504,-163.62576143,0.0003041,2]
[325274742,1714677063514,-563.89,0.0003041,2]
[325274743,1714677063523,-500.0,0.0003041,2]
[325274744,1714677063534,-500.0,0.0003041,2]
[325274745,1714677063544,-500.0,0.0003041,2]
[325274746,1714677063554,-555.32,0.0003041,2]
[325274747,1714677063564,-970.87,0.0003041,2]
[325274748,1714677063574,-901.92,0.0003041,2]
[325274749,1714677063584,-500.0,0.0003041,2]
[325274750,1714677063594,-500.0,0.0003041,2]
[325274751,1714677063603,-500.0,0.0003041,2]
[325274752,1714677063613,-500.0,0.0003041,2]
[325274753,1714677063623,-500.0,0.0003041,2]
[325274754,1714677063634,-1113.09,0.0003041,2]
[325274755,1714677063645,-500.0,0.0003041,2]
[325274756,1714677063654,-500.0,0.0003041,2]
[325274757,1714677063665,-652.74,0.0003041,2]
[325274758,1714677063675,-500.0,0.0003041,2]
[325274759,1714677063684,-500.0,0.0003041,2]
[325274760,1714677063694,-506.90132624,0.0003041,2]
[325274761,1714677063703,-503.6978761,0.0003041,2]
[325274762,1714677063713,-600.99,0.0003041,2]
[325274763,1714677063722,-521.81633526,0.0003041,2]
[325274764,1714677063732,-500.0,0.0003041,2]
[325274765,1714677063741,-500.0,0.0003041,2]
[325274766,1714677063752,-200.65719054,0.0003041,2]
[325274767,1714677063762,-500.0,0.0003041,2]
[325274768,1714677063771,-500.0,0.0003041,2]
[325274769,1714677063781,-565.37,0.0003041,2]
[325274770,1714677063791,-501.56158119,0.0003041,2]
[325274771,1714677063801,-1343.44,0.0003041,2]
[325274772,1714677063811,-500.0,0.0003041,2]
[325274773,1714677063821,-500.0,0.0003041,2]
[325274774,1714677063830,-500.0,0.0003041,2]
[325274775,1714677063840,-833.48,0.0003041,2]
[325274776,1714677063849,-500.0,0.0003041,2]
[325274777,1714677063859,-500.0,0.0003041,2]
[325274778,1714677063869,-515.7066397,0.0003041,2]
[325274779,1714677063879,-500.0,0.0003041,2]